[Event "Titled Tuesday Blitz March 21 Late 2023"]
[White "Matinian, Nikita"]
[Black "Kostiukov, Alexandr"]
[WhiteFideId "24129100"]
[BlackFideId "14108100"]
[WhiteElo "2422"]
[BlackElo "2202"]
[Result "1-0"]
[Round "01"]
[TimeControl "180+2"]
[Date "2023.03.21"]
[WhiteClock "0:00:55"]
[BlackClock "0:00:02"]

1. e4 {[%clk 0:03:00]}  c5 {[%clk 0:02:59]} 2. Nf3 {[%clk 0:02:59]}  g6 {[%clk 0:02:58]} 3. c3 {[%clk 0:02:57]}  Bg7 {[%clk 0:02:57]} 4. d4 {[%clk 0:02:55]}  cxd4 {[%clk 0:02:57]} 5. cxd4 {[%clk 0:02:56]}  d5 {[%clk 0:02:57]} 6. e5 {[%clk 0:02:56]}  Bg4 {[%clk 0:02:55]} 7. Bb5+ {[%clk 0:02:50]}  Nc6 {[%clk 0:02:55]} 8. Nc3 {[%clk 0:02:48]}  Nh6 {[%clk 0:02:54]} 9. h3 {[%clk 0:02:46]}  Bxf3 {[%clk 0:02:53]} 10. Qxf3 {[%clk 0:02:44]}  Nf5 {[%clk 0:02:51]} 11. Be3 {[%clk 0:02:42]}  O-O {[%clk 0:02:37]} 12. Bxc6 {[%clk 0:02:41]}  bxc6 {[%clk 0:02:36]} 13. O-O {[%clk 0:02:33]}  c5 {[%clk 0:02:27]} 14. Nxd5 {[%clk 0:02:27]}  cxd4 {[%clk 0:02:23]} 15. Bg5 {[%clk 0:02:26]}  h6 {[%clk 0:02:15]} 16. Bf4 {[%clk 0:02:26]}  e6 {[%clk 0:02:05]} 17. Nf6+ {[%clk 0:02:18]}  Bxf6 {[%clk 0:01:57]} 18. exf6 {[%clk 0:02:19]}  Qxf6 {[%clk 0:01:56]} 19. Rfe1 {[%clk 0:02:19]}  g5 {[%clk 0:01:28]} 20. Be5 {[%clk 0:02:18]}  Qg6 {[%clk 0:01:26]} 21. Rac1 {[%clk 0:02:06]}  Rac8 {[%clk 0:01:15]} 22. Rxc8 {[%clk 0:02:05]}  Rxc8 {[%clk 0:01:14]} 23. Qb7 {[%clk 0:02:06]}  Rf8 {[%clk 0:01:00]} 24. Qxa7 {[%clk 0:02:05]}  g4 {[%clk 0:00:54]} 25. hxg4 {[%clk 0:01:54]}  Qxg4 {[%clk 0:00:53]} 26. Qa3 {[%clk 0:01:54]}  Rc8 {[%clk 0:00:31]} 27. Qd3 {[%clk 0:01:53]}  h5 {[%clk 0:00:17]} 28. a4 {[%clk 0:01:50]}  Rc5 {[%clk 0:00:12]} 29. Qb3 {[%clk 0:00:55]}  Ne3 {[%clk 0:00:04]} 30. Qb8+ {[%clk 0:00:54]}  Kh7 {[%clk 0:00:04]} 31. Qh8+ {[%clk 0:00:54]}  Kg6 {[%clk 0:00:03]} 32. Qg7+ {[%clk 0:00:55]}  Kf5 {[%clk 0:00:03]} 33. Qf6+ {[%clk 0:00:55]}  Ke4 {[%clk 0:00:02]} 34. f3+ {[%clk 0:00:55]} 1-0


[Site "https://www.chess.com"]

[Event "Titled Tuesday Blitz March 21 Late 2023"]
[White "Goltsev, Dmitry"]
[Black "Fernandez Siles, Luis"]
[WhiteFideId "24176710"]
[BlackFideId "2209420"]
[WhiteElo "2336"]
[BlackElo "2186"]
[Result "1-0"]
[Round "01"]
[TimeControl "180+2"]
[Date "2023.03.21"]
[WhiteClock "0:00:06"]
[BlackClock "0:00:01"]

1. e4 {[%clk 0:02:59]}  c5 {[%clk 0:02:59]} 2. Nf3 {[%clk 0:02:59]}  Nc6 {[%clk 0:02:58]} 3. d4 {[%clk 0:03:00]}  cxd4 {[%clk 0:02:59]} 4. Nxd4 {[%clk 0:03:00]}  Nf6 {[%clk 0:02:59]} 5. Nc3 {[%clk 0:03:01]}  e5 {[%clk 0:03:00]} 6. Nf5 {[%clk 0:03:02]}  d5 {[%clk 0:02:58]} 7. exd5 {[%clk 0:03:02]}  Bxf5 {[%clk 0:02:54]} 8. dxc6 {[%clk 0:03:03]}  bxc6 {[%clk 0:02:53]} 9. Bd3 {[%clk 0:03:03]}  Bxd3 {[%clk 0:02:48]} 10. Qxd3 {[%clk 0:03:04]}  Qxd3 {[%clk 0:02:47]} 11. cxd3 {[%clk 0:03:05]}  O-O-O {[%clk 0:02:38]} 12. Ke2 {[%clk 0:03:05]}  Nd5 {[%clk 0:02:32]} 13. Be3 {[%clk 0:02:59]}  Kb7 {[%clk 0:02:28]} 14. Rac1 {[%clk 0:02:56]}  Be7 {[%clk 0:02:09]} 15. a3 {[%clk 0:02:53]}  h6 {[%clk 0:02:00]} 16. Rc2 {[%clk 0:02:51]}  Bg5 {[%clk 0:01:58]} 17. Rhc1 {[%clk 0:02:50]}  Bxe3 {[%clk 0:01:53]} 18. fxe3 {[%clk 0:02:49]}  Nxc3+ {[%clk 0:01:49]} 19. Rxc3 {[%clk 0:02:50]}  Rd6 {[%clk 0:01:49]} 20. b4 {[%clk 0:02:44]}  a6 {[%clk 0:01:47]} 21. a4 {[%clk 0:02:42]}  Re8 {[%clk 0:01:28]} 22. g3 {[%clk 0:02:36]}  f6 {[%clk 0:01:23]} 23. b5 {[%clk 0:02:27]}  axb5 {[%clk 0:01:23]} 24. axb5 {[%clk 0:02:28]}  Ree6 {[%clk 0:01:16]} 25. g4 {[%clk 0:02:13]}  Kb6 {[%clk 0:01:15]} 26. bxc6 {[%clk 0:02:07]}  Rxc6 {[%clk 0:01:15]} 27. Rb3+ {[%clk 0:02:08]}  Kc7 {[%clk 0:01:15]} 28. Rcb1 {[%clk 0:02:08]}  Rb6 {[%clk 0:01:13]} 29. Kf3 {[%clk 0:02:06]}  Rxb3 {[%clk 0:01:07]} 30. Rxb3 {[%clk 0:02:07]}  Ra6 {[%clk 0:01:01]} 31. Ke4 {[%clk 0:02:07]}  g6 {[%clk 0:01:00]} 32. h4 {[%clk 0:02:05]}  Kd6 {[%clk 0:00:58]} 33. h5 {[%clk 0:02:04]}  Ra4+ {[%clk 0:00:58]} 34. Kf3 {[%clk 0:02:03]}  gxh5 {[%clk 0:00:57]} 35. gxh5 {[%clk 0:02:02]}  Rh4 {[%clk 0:00:57]} 36. Rb6+ {[%clk 0:02:02]}  Ke7 {[%clk 0:00:56]} 37. Ra6 {[%clk 0:01:47]}  Rxh5 {[%clk 0:00:52]} 38. Ke4 {[%clk 0:01:34]}  Rh3 {[%clk 0:00:50]} 39. d4 {[%clk 0:01:21]}  exd4 {[%clk 0:00:44]} 40. exd4 {[%clk 0:01:22]}  Rh5 {[%clk 0:00:39]} 41. d5 {[%clk 0:01:17]}  Rh4+ {[%clk 0:00:34]} 42. Kf5 {[%clk 0:01:13]}  Rh5+ {[%clk 0:00:29]} 43. Ke4 {[%clk 0:01:12]}  Rh4+ {[%clk 0:00:29]} 44. Kd3 {[%clk 0:01:12]}  h5 {[%clk 0:00:28]} 45. Re6+ {[%clk 0:01:04]}  Kf7 {[%clk 0:00:27]} 46. Re1 {[%clk 0:01:02]}  Ra4 {[%clk 0:00:25]} 47. Kc3 {[%clk 0:01:00]}  h4 {[%clk 0:00:24]} 48. d6 {[%clk 0:00:54]}  Ra6 {[%clk 0:00:23]} 49. Rd1 {[%clk 0:00:54]}  Ke8 {[%clk 0:00:21]} 50. Kc4 {[%clk 0:00:51]}  Kd7 {[%clk 0:00:20]} 51. Kc5 {[%clk 0:00:49]}  Rc6+ {[%clk 0:00:20]} 52. Kb4 {[%clk 0:00:47]}  Rxd6 {[%clk 0:00:21]} 53. Rh1 {[%clk 0:00:44]}  Rd4+ {[%clk 0:00:21]} 54. Kc5 {[%clk 0:00:42]}  Re4 {[%clk 0:00:22]} 55. Kd5 {[%clk 0:00:42]}  f5 {[%clk 0:00:22]} 56. Rf1 {[%clk 0:00:40]}  Ra4 {[%clk 0:00:21]} 57. Ke5 {[%clk 0:00:37]}  Ra5+ {[%clk 0:00:21]} 58. Kf4 {[%clk 0:00:36]}  Ke6 {[%clk 0:00:21]} 59. Rh1 {[%clk 0:00:33]}  Kf6 {[%clk 0:00:21]} 60. Rb1 {[%clk 0:00:30]}  Ra4+ {[%clk 0:00:20]} 61. Kf3 {[%clk 0:00:30]}  Kg5 {[%clk 0:00:20]} 62. Rb8 {[%clk 0:00:30]}  Ra3+ {[%clk 0:00:20]} 63. Kg2 {[%clk 0:00:31]}  Kf4 {[%clk 0:00:20]} 64. Rb4+ {[%clk 0:00:30]}  Kg5 {[%clk 0:00:19]} 65. Rb8 {[%clk 0:00:31]}  h3+ {[%clk 0:00:18]} 66. Kh2 {[%clk 0:00:31]}  Kg4 {[%clk 0:00:18]} 67. Rg8+ {[%clk 0:00:30]}  Kf4 {[%clk 0:00:18]} 68. Rc8 {[%clk 0:00:31]}  Kf3 {[%clk 0:00:17]} 69. Rh8 {[%clk 0:00:28]}  Kf2 {[%clk 0:00:16]} 70. Rf8 {[%clk 0:00:27]}  Rf3 {[%clk 0:00:16]} 71. Ra8 {[%clk 0:00:25]}  f4 {[%clk 0:00:14]} 72. Ra2+ {[%clk 0:00:24]}  Ke3 {[%clk 0:00:14]} 73. Ra3+ {[%clk 0:00:25]}  Ke4 {[%clk 0:00:14]} 74. Ra4+ {[%clk 0:00:25]}  Kf5 {[%clk 0:00:14]} 75. Ra5+ {[%clk 0:00:25]}  Kg4 {[%clk 0:00:15]} 76. Ra8 {[%clk 0:00:25]}  Rf2+ {[%clk 0:00:15]} 77. Kg1 {[%clk 0:00:25]}  Rb2 {[%clk 0:00:14]} 78. Ra3 {[%clk 0:00:17]}  Rc2 {[%clk 0:00:12]} 79. Rb3 {[%clk 0:00:16]}  Re2 {[%clk 0:00:12]} 80. Ra3 {[%clk 0:00:15]}  Re3 {[%clk 0:00:13]} 81. Ra8 {[%clk 0:00:15]}  Kg3 {[%clk 0:00:13]} 82. Rg8+ {[%clk 0:00:14]}  Kf3 {[%clk 0:00:13]} 83. Kh2 {[%clk 0:00:15]}  Re1 {[%clk 0:00:12]} 84. Ra8 {[%clk 0:00:15]}  Rd1 {[%clk 0:00:08]} 85. Ra3+ {[%clk 0:00:14]}  Ke2 {[%clk 0:00:06]} 86. Kxh3 {[%clk 0:00:11]}  f3 {[%clk 0:00:06]} 87. Kg3 {[%clk 0:00:12]}  Rg1+ {[%clk 0:00:06]} 88. Kh2 {[%clk 0:00:12]}  Rg2+ {[%clk 0:00:04]} 89. Kh1 {[%clk 0:00:10]}  Rg8 {[%clk 0:00:03]} 90. Ra2+ {[%clk 0:00:10]}  Ke3 {[%clk 0:00:03]} 91. Ra3+ {[%clk 0:00:11]}  Kf2 {[%clk 0:00:04]} 92. Ra2+ {[%clk 0:00:10]}  Kg3 {[%clk 0:00:04]} 93. Kg1 {[%clk 0:00:08]}  Rc8 {[%clk 0:00:03]} 94. Rg2+ {[%clk 0:00:05]}  Kf4 {[%clk 0:00:01]} 95. Ra2 {[%clk 0:00:06]} 1-0


[Site "https://www.chess.com"]

[Event "Titled Tuesday Blitz March 21 Late 2023"]
[White "Garcia Cuenca, Victor"]
[Black "Spata, German"]
[WhiteFideId "2250829"]
[BlackFideId "113026"]
[WhiteElo "2329"]
[BlackElo "2238"]
[Result "0-1"]
[Round "01"]
[TimeControl "180+2"]
[Date "2023.03.21"]
[WhiteClock "0:00:12"]
[BlackClock "0:00:12"]

1. d4 {[%clk 0:02:59]}  d5 {[%clk 0:02:52]} 2. e3 {[%clk 0:02:59]}  Nf6 {[%clk 0:02:52]} 3. c4 {[%clk 0:03:00]}  c6 {[%clk 0:02:51]} 4. Nc3 {[%clk 0:03:00]}  a6 {[%clk 0:02:48]} 5. cxd5 {[%clk 0:02:56]}  cxd5 {[%clk 0:02:48]} 6. Bd3 {[%clk 0:02:55]}  Nc6 {[%clk 0:02:46]} 7. h3 {[%clk 0:02:52]}  e6 {[%clk 0:02:36]} 8. Nf3 {[%clk 0:02:52]}  Bd6 {[%clk 0:02:36]} 9. O-O {[%clk 0:02:51]}  O-O {[%clk 0:02:36]} 10. Qe2 {[%clk 0:02:48]}  e5 {[%clk 0:02:35]} 11. dxe5 {[%clk 0:02:46]}  Nxe5 {[%clk 0:02:36]} 12. Nxe5 {[%clk 0:02:46]}  Bxe5 {[%clk 0:02:36]} 13. Rd1 {[%clk 0:02:46]}  Bc7 {[%clk 0:02:31]} 14. b3 {[%clk 0:02:31]}  Qd6 {[%clk 0:02:28]} 15. f4 {[%clk 0:02:31]}  Re8 {[%clk 0:02:24]} 16. Qf2 {[%clk 0:02:18]}  Bd7 {[%clk 0:02:08]} 17. a4 {[%clk 0:01:53]}  Bb6 {[%clk 0:02:04]} 18. Ne2 {[%clk 0:01:40]}  Ne4 {[%clk 0:01:56]} 19. Bxe4 {[%clk 0:01:38]}  Rxe4 {[%clk 0:01:57]} 20. Qf3 {[%clk 0:01:22]}  Rae8 {[%clk 0:01:51]} 21. Nd4 {[%clk 0:00:56]}  Qb4 {[%clk 0:01:44]} 22. Bd2 {[%clk 0:00:55]}  Qe7 {[%clk 0:01:35]} 23. Rac1 {[%clk 0:00:45]}  Bxd4 {[%clk 0:01:27]} 24. exd4 {[%clk 0:00:46]}  Rxd4 {[%clk 0:01:27]} 25. Bc3 {[%clk 0:00:44]}  Rxd1+ {[%clk 0:01:26]} 26. Rxd1 {[%clk 0:00:45]}  Bc6 {[%clk 0:01:20]} 27. Bd4 {[%clk 0:00:43]}  Qe2 {[%clk 0:01:11]} 28. Rd3 {[%clk 0:00:29]}  Qxf3 {[%clk 0:01:08]} 29. Rxf3 {[%clk 0:00:30]}  Re4 {[%clk 0:01:05]} 30. Bb2 {[%clk 0:00:20]}  f6 {[%clk 0:00:51]} 31. g3 {[%clk 0:00:19]}  Re2 {[%clk 0:00:46]} 32. Bd4 {[%clk 0:00:18]}  Kf7 {[%clk 0:00:44]} 33. Rd3 {[%clk 0:00:17]}  Bd7 {[%clk 0:00:42]} 34. h4 {[%clk 0:00:16]}  Bf5 {[%clk 0:00:42]} 35. Rc3 {[%clk 0:00:16]}  Be4 {[%clk 0:00:40]} 36. Kf1 {[%clk 0:00:15]}  Rg2 {[%clk 0:00:36]} 37. Bf2 {[%clk 0:00:13]}  Rh2 {[%clk 0:00:33]} 38. Rc7+ {[%clk 0:00:10]}  Kg6 {[%clk 0:00:33]} 39. Rxb7 {[%clk 0:00:11]}  Rh1+ {[%clk 0:00:28]} 40. Bg1 {[%clk 0:00:11]}  h5 {[%clk 0:00:25]} 41. Re7 {[%clk 0:00:11]}  Kf5 {[%clk 0:00:23]} 42. Rxe4 {[%clk 0:00:11]}  dxe4 {[%clk 0:00:15]} 43. Kg2 {[%clk 0:00:12]}  Rxg1+ {[%clk 0:00:15]} 44. Kxg1 {[%clk 0:00:11]}  a5 {[%clk 0:00:15]} 45. Kf2 {[%clk 0:00:11]}  Ke6 {[%clk 0:00:16]} 46. Ke3 {[%clk 0:00:10]}  f5 {[%clk 0:00:15]} 47. Kd4 {[%clk 0:00:11]}  Kd6 {[%clk 0:00:15]} 48. b4 {[%clk 0:00:11]}  axb4 {[%clk 0:00:15]} 49. Kc4 {[%clk 0:00:12]}  e3 {[%clk 0:00:15]} 50. Kd3 {[%clk 0:00:12]}  b3 {[%clk 0:00:10]} 51. Kxe3 {[%clk 0:00:12]}  Kc5 {[%clk 0:00:11]} 52. Kd3 {[%clk 0:00:11]}  Kb4 {[%clk 0:00:11]} 53. a5 {[%clk 0:00:11]}  Kxa5 {[%clk 0:00:11]} 54. Kc3 {[%clk 0:00:10]}  Ka4 {[%clk 0:00:11]} 55. Kb2 {[%clk 0:00:11]}  Kb4 {[%clk 0:00:12]} 56. Kb1 {[%clk 0:00:12]}  Kc3 {[%clk 0:00:12]} 0-1


[Site "https://www.chess.com"]

[Event "Titled Tuesday Blitz March 21 Late 2023"]
[White "Pniaczek, Marek"]
[Black "Sai Krishna G V"]
[WhiteFideId "21800421"]
[BlackFideId "5028280"]
[WhiteElo "2138"]
[BlackElo "2359"]
[Result "0-1"]
[Round "01"]
[TimeControl "180+2"]
[Date "2023.03.21"]
[WhiteClock "0:00:03"]
[BlackClock "0:00:04"]

1. e4 {[%clk 0:03:00]}  c5 {[%clk 0:02:57]} 2. Nf3 {[%clk 0:03:00]}  d6 {[%clk 0:02:52]} 3. d4 {[%clk 0:02:59]}  cxd4 {[%clk 0:02:53]} 4. Qxd4 {[%clk 0:03:00]}  Nf6 {[%clk 0:02:51]} 5. Bb5+ {[%clk 0:02:58]}  Nc6 {[%clk 0:02:49]} 6. Bg5 {[%clk 0:02:50]}  Bd7 {[%clk 0:02:47]} 7. Bxc6 {[%clk 0:02:50]}  bxc6 {[%clk 0:02:45]} 8. e5 {[%clk 0:02:40]}  dxe5 {[%clk 0:02:00]} 9. Nxe5 {[%clk 0:02:38]}  Nd5 {[%clk 0:01:51]} 10. O-O {[%clk 0:02:16]}  f6 {[%clk 0:01:44]} 11. Nxd7 {[%clk 0:02:12]}  Qxd7 {[%clk 0:01:45]} 12. Bd2 {[%clk 0:02:09]}  e5 {[%clk 0:01:44]} 13. Qa4 {[%clk 0:02:00]}  Bc5 {[%clk 0:01:42]} 14. Nc3 {[%clk 0:01:40]}  Nb6 {[%clk 0:01:25]} 15. Qe4 {[%clk 0:01:39]}  O-O {[%clk 0:01:19]} 16. Rad1 {[%clk 0:01:29]}  Bd4 {[%clk 0:01:13]} 17. Ne2 {[%clk 0:01:11]}  f5 {[%clk 0:00:39]} 18. Qd3 {[%clk 0:01:09]}  c5 {[%clk 0:00:30]} 19. Qh3 {[%clk 0:00:47]}  e4 {[%clk 0:00:22]} 20. Bc3 {[%clk 0:00:39]}  Qf7 {[%clk 0:00:16]} 21. Nxd4 {[%clk 0:00:36]}  cxd4 {[%clk 0:00:16]} 22. Rxd4 {[%clk 0:00:36]}  Qxa2 {[%clk 0:00:15]} 23. Qg3 {[%clk 0:00:33]}  Rf7 {[%clk 0:00:15]} 24. Rfd1 {[%clk 0:00:29]}  Raf8 {[%clk 0:00:14]} 25. Rd8 {[%clk 0:00:28]}  Nd7 {[%clk 0:00:03]} 26. Rxf8+ {[%clk 0:00:09]}  Nxf8 {[%clk 0:00:04]} 27. h3 {[%clk 0:00:10]}  f4 {[%clk 0:00:05]} 28. Qg4 {[%clk 0:00:09]}  e3 {[%clk 0:00:05]} 29. fxe3 {[%clk 0:00:09]}  fxe3 {[%clk 0:00:06]} 30. Rd8 {[%clk 0:00:07]}  Qb1+ {[%clk 0:00:05]} 31. Kh2 {[%clk 0:00:07]}  Qxc2 {[%clk 0:00:05]} 32. Re8 {[%clk 0:00:06]}  Qg6 {[%clk 0:00:04]} 33. Rxf8+ {[%clk 0:00:05]}  Kxf8 {[%clk 0:00:04]} 34. Qc8+ {[%clk 0:00:05]}  Ke7 {[%clk 0:00:05]} 35. Qc7+ {[%clk 0:00:05]}  Ke6 {[%clk 0:00:05]} 36. Qc6+ {[%clk 0:00:05]}  Kf5 {[%clk 0:00:05]} 37. Qd5+ {[%clk 0:00:06]}  Kf4 {[%clk 0:00:05]} 38. Be5+ {[%clk 0:00:03]}  Kg5 {[%clk 0:00:04]} 0-1


[Site "https://www.chess.com"]

[Event "Titled Tuesday Blitz March 21 Late 2023"]
[White "Rosenberg, Evan S"]
[Black "Zarubitski, Viachaslau"]
[WhiteFideId "2019299"]
[BlackFideId "13509373"]
[WhiteElo "2323"]
[BlackElo "2284"]
[Result "1-0"]
[Round "01"]
[TimeControl "180+2"]
[Date "2023.03.21"]
[WhiteClock "0:00:03"]
[BlackClock "0:00:16"]

1. d4 {[%clk 0:03:00]}  Nf6 {[%clk 0:02:59]} 2. Nf3 {[%clk 0:03:01]}  e6 {[%clk 0:02:59]} 3. g3 {[%clk 0:03:01]}  d5 {[%clk 0:02:56]} 4. Bg2 {[%clk 0:03:01]}  c5 {[%clk 0:02:56]} 5. O-O {[%clk 0:03:00]}  Nc6 {[%clk 0:02:57]} 6. c4 {[%clk 0:03:00]}  Be7 {[%clk 0:02:50]} 7. dxc5 {[%clk 0:02:53]}  Bxc5 {[%clk 0:02:46]} 8. a3 {[%clk 0:02:54]}  a5 {[%clk 0:02:44]} 9. Nc3 {[%clk 0:02:46]}  d4 {[%clk 0:02:39]} 10. Na4 {[%clk 0:02:43]}  Ba7 {[%clk 0:02:38]} 11. c5 {[%clk 0:02:43]}  e5 {[%clk 0:02:37]} 12. Bg5 {[%clk 0:02:27]}  O-O {[%clk 0:02:34]} 13. Qc2 {[%clk 0:02:11]}  h6 {[%clk 0:02:21]} 14. Bxf6 {[%clk 0:01:59]}  Qxf6 {[%clk 0:02:22]} 15. Nd2 {[%clk 0:01:50]}  Bf5 {[%clk 0:02:14]} 16. Be4 {[%clk 0:01:43]}  Be6 {[%clk 0:02:02]} 17. f4 {[%clk 0:01:33]}  exf4 {[%clk 0:01:44]} 18. Rxf4 {[%clk 0:01:28]}  Qe7 {[%clk 0:01:44]} 19. Raf1 {[%clk 0:01:13]}  Rac8 {[%clk 0:01:42]} 20. Bh7+ {[%clk 0:00:42]}  Kh8 {[%clk 0:01:42]} 21. Bf5 {[%clk 0:00:40]}  Ne5 {[%clk 0:01:33]} 22. b4 {[%clk 0:00:23]}  axb4 {[%clk 0:01:29]} 23. axb4 {[%clk 0:00:24]}  Bxf5 {[%clk 0:01:06]} 24. Qxf5 {[%clk 0:00:17]}  Nc6 {[%clk 0:01:04]} 25. b5 {[%clk 0:00:14]}  Nd8 {[%clk 0:00:43]} 26. Qxc8 {[%clk 0:00:13]}  Qe3+ {[%clk 0:00:40]} 27. Kg2 {[%clk 0:00:12]}  Ne6 {[%clk 0:00:36]} 28. Qxb7 {[%clk 0:00:09]}  Nxf4+ {[%clk 0:00:24]} 29. Rxf4 {[%clk 0:00:10]}  Qxd2 {[%clk 0:00:24]} 30. Qxa7 {[%clk 0:00:09]}  Qxe2+ {[%clk 0:00:25]} 31. Rf2 {[%clk 0:00:10]}  Qxb5 {[%clk 0:00:26]} 32. Qe7 {[%clk 0:00:07]}  Ra8 {[%clk 0:00:23]} 33. Nb6 {[%clk 0:00:07]}  Qc6+ {[%clk 0:00:23]} 34. Kh3 {[%clk 0:00:07]}  Re8 {[%clk 0:00:17]} 35. Qxf7 {[%clk 0:00:06]}  d3 {[%clk 0:00:17]} 36. Nd7 {[%clk 0:00:05]}  Rd8 {[%clk 0:00:15]} 37. Ne5 {[%clk 0:00:04]}  d2 {[%clk 0:00:15]} 38. Nxc6 {[%clk 0:00:04]}  d1=Q {[%clk 0:00:15]} 39. Nxd8 {[%clk 0:00:04]}  Kh7 {[%clk 0:00:13]} 40. Qf5+ {[%clk 0:00:03]}  Kh8 {[%clk 0:00:13]} 41. Nf7+ {[%clk 0:00:03]}  Kg8 {[%clk 0:00:14]} 42. Nxh6+ {[%clk 0:00:03]}  gxh6 {[%clk 0:00:14]} 43. Qf8+ {[%clk 0:00:03]}  Kh7 {[%clk 0:00:14]} 44. Rf7+ {[%clk 0:00:03]}  Kg6 {[%clk 0:00:15]} 45. Qg7+ {[%clk 0:00:03]}  Kh5 {[%clk 0:00:16]} 46. Rf5# {[%clk 0:00:03]} 1-0


[Site "https://www.chess.com"]

[Event "Titled Tuesday Blitz March 21 Late 2023"]
[White "Gunduz, Umut Erdem"]
[Black "Shtompel, Yuriy"]
[WhiteFideId "6381383"]
[BlackFideId "14168278"]
[WhiteElo "2182"]
[BlackElo "1844"]
[Result "1-0"]
[Round "01"]
[TimeControl "180+2"]
[Date "2023.03.21"]
[WhiteClock "0:00:13"]
[BlackClock "0:00:03"]

1. e4 {[%clk 0:02:44]}  c5 {[%clk 0:02:51]} 2. Nf3 {[%clk 0:02:43]}  d6 {[%clk 0:02:49]} 3. d4 {[%clk 0:02:44]}  cxd4 {[%clk 0:02:49]} 4. Nxd4 {[%clk 0:02:44]}  Nf6 {[%clk 0:02:50]} 5. Nc3 {[%clk 0:02:44]}  a6 {[%clk 0:02:50]} 6. Bg5 {[%clk 0:02:44]}  e6 {[%clk 0:02:50]} 7. f4 {[%clk 0:02:45]}  Nbd7 {[%clk 0:02:51]} 8. Qf3 {[%clk 0:02:45]}  Be7 {[%clk 0:02:51]} 9. O-O-O {[%clk 0:02:45]}  Qc7 {[%clk 0:02:51]} 10. g4 {[%clk 0:02:45]}  h6 {[%clk 0:02:51]} 11. Bxf6 {[%clk 0:02:43]}  Bxf6 {[%clk 0:02:52]} 12. h4 {[%clk 0:02:43]}  Bxd4 {[%clk 0:02:50]} 13. Rxd4 {[%clk 0:02:42]}  Qc5 {[%clk 0:02:51]} 14. Rd1 {[%clk 0:02:35]}  b5 {[%clk 0:02:36]} 15. Bd3 {[%clk 0:02:28]}  Bb7 {[%clk 0:02:12]} 16. g5 {[%clk 0:02:27]}  b4 {[%clk 0:02:09]} 17. Ne2 {[%clk 0:02:27]}  a5 {[%clk 0:01:50]} 18. g6 {[%clk 0:02:20]}  f6 {[%clk 0:01:43]} 19. Kb1 {[%clk 0:02:12]}  a4 {[%clk 0:01:41]} 20. c3 {[%clk 0:01:43]}  a3 {[%clk 0:01:21]} 21. Nd4 {[%clk 0:01:26]}  Ke7 {[%clk 0:00:52]} 22. Nb3 {[%clk 0:01:20]}  Qa7 {[%clk 0:00:46]} 23. cxb4 {[%clk 0:01:07]}  axb2 {[%clk 0:00:46]} 24. Na5 {[%clk 0:01:08]}  Qb6 {[%clk 0:00:32]} 25. a3 {[%clk 0:01:02]}  Rxa5 {[%clk 0:00:21]} 26. bxa5 {[%clk 0:01:03]}  Qxa5 {[%clk 0:00:22]} 27. Bc2 {[%clk 0:01:00]}  Nc5 {[%clk 0:00:20]} 28. Rd4 {[%clk 0:00:51]}  Rc8 {[%clk 0:00:18]} 29. Rb4 {[%clk 0:00:50]}  Bc6 {[%clk 0:00:17]} 30. Qc3 {[%clk 0:00:43]}  Qa8 {[%clk 0:00:16]} 31. Re1 {[%clk 0:00:39]}  Nxe4 {[%clk 0:00:12]} 32. Qxb2 {[%clk 0:00:34]}  d5 {[%clk 0:00:10]} 33. Bxe4 {[%clk 0:00:29]}  dxe4 {[%clk 0:00:10]} 34. Rb6 {[%clk 0:00:18]}  Bd5 {[%clk 0:00:09]} 35. Qb4+ {[%clk 0:00:18]}  Ke8 {[%clk 0:00:06]} 36. Qb5+ {[%clk 0:00:16]}  Kf8 {[%clk 0:00:06]} 37. Qb4+ {[%clk 0:00:16]}  Kg8 {[%clk 0:00:07]} 38. Rc1 {[%clk 0:00:15]}  Rd8 {[%clk 0:00:04]} 39. Qc5 {[%clk 0:00:13]}  e3 {[%clk 0:00:04]} 40. Qxe3 {[%clk 0:00:13]}  Be4+ {[%clk 0:00:04]} 41. Ka1 {[%clk 0:00:13]}  Bd5 {[%clk 0:00:05]} 42. Qc5 {[%clk 0:00:13]}  Re8 {[%clk 0:00:04]} 43. Qb4 {[%clk 0:00:13]}  Rd8 {[%clk 0:00:04]} 44. Qe7 {[%clk 0:00:13]}  Re8 {[%clk 0:00:03]} 45. Qb4 {[%clk 0:00:12]}  Rc8 {[%clk 0:00:02]} 46. Rb1 {[%clk 0:00:12]}  Rd8 {[%clk 0:00:02]} 47. Rb8 {[%clk 0:00:13]}  Rxb8 {[%clk 0:00:02]} 48. Qxb8+ {[%clk 0:00:13]}  Qxb8 {[%clk 0:00:03]} 49. Rxb8# {[%clk 0:00:13]} 1-0


[Site "https://www.chess.com"]

[Event "Titled Tuesday Blitz March 21 Late 2023"]
[White "Jiganchine, Roman"]
[Black "Ozer, Omer Faruk"]
[WhiteFideId "2603667"]
[BlackFideId "6354564"]
[WhiteElo "2316"]
[BlackElo "2260"]
[Result "0-1"]
[Round "01"]
[TimeControl "180+2"]
[Date "2023.03.21"]
[WhiteClock "0:00:07"]
[BlackClock "0:01:09"]

1. e4 {[%clk 0:02:58]}  d6 {[%clk 0:02:57]} 2. d4 {[%clk 0:02:57]}  Nf6 {[%clk 0:02:55]} 3. Nc3 {[%clk 0:02:58]}  g6 {[%clk 0:02:54]} 4. Nf3 {[%clk 0:02:58]}  Bg7 {[%clk 0:02:53]} 5. Be3 {[%clk 0:02:58]}  a6 {[%clk 0:02:51]} 6. Qd2 {[%clk 0:02:51]}  b5 {[%clk 0:02:50]} 7. Bd3 {[%clk 0:02:41]}  Bb7 {[%clk 0:02:49]} 8. Bh6 {[%clk 0:02:31]}  Bxh6 {[%clk 0:02:44]} 9. Qxh6 {[%clk 0:02:31]}  b4 {[%clk 0:02:44]} 10. Nd5 {[%clk 0:02:15]}  Nxd5 {[%clk 0:02:42]} 11. exd5 {[%clk 0:02:14]}  Bxd5 {[%clk 0:02:41]} 12. Qg7 {[%clk 0:02:06]}  Rf8 {[%clk 0:02:40]} 13. Ng5 {[%clk 0:02:04]}  Kd7 {[%clk 0:02:14]} 14. Nxh7 {[%clk 0:01:33]}  Rg8 {[%clk 0:02:12]} 15. Qh6 {[%clk 0:01:33]}  Rh8 {[%clk 0:02:12]} 16. Qh3+ {[%clk 0:01:00]}  e6 {[%clk 0:02:06]} 17. a3 {[%clk 0:00:41]}  Nc6 {[%clk 0:02:04]} 18. c4 {[%clk 0:00:27]}  bxc3 {[%clk 0:02:04]} 19. bxc3 {[%clk 0:00:28]}  Na5 {[%clk 0:01:39]} 20. O-O {[%clk 0:00:27]}  Qe7 {[%clk 0:01:39]} 21. c4 {[%clk 0:00:21]}  Nxc4 {[%clk 0:01:27]} 22. Bxc4 {[%clk 0:00:16]}  Bxc4 {[%clk 0:01:28]} 23. Qf3 {[%clk 0:00:15]}  f5 {[%clk 0:01:25]} 24. Qc3 {[%clk 0:00:11]}  Bxf1 {[%clk 0:01:23]} 25. d5 {[%clk 0:00:10]}  Qxh7 {[%clk 0:01:19]} 26. Qc6+ {[%clk 0:00:08]}  Ke7 {[%clk 0:01:19]} 27. Qxc7+ {[%clk 0:00:08]}  Kf6 {[%clk 0:01:19]} 28. Qc3+ {[%clk 0:00:07]}  e5 {[%clk 0:01:19]} 29. h3 {[%clk 0:00:07]}  Bb5 {[%clk 0:01:11]} 30. Qc7 {[%clk 0:00:07]}  Qxc7 {[%clk 0:01:09]} 0-1


[Site "https://www.chess.com"]